Cogmind - Beta 13 @@@ ROGUE MODE // 2024.07.31 @ 18:03:05 Player: whimsical Result: Destroyed by G-34 Mercenary with Small Laser Performance ------------- Evolutions (1) 500 Regions Visited (3) 600 Robots Destroyed (19) 95 Value Destroyed (703) 703 Prototype IDs (3) 60 Alien Tech Used (0) 0 Bonus (0) 0 TOTAL SCORE: 1958 Bonus ------- None Cogmind --------- Core Integrity 0/400 Matter 294/300 Energy 263/265 System Corruption 3% Temperature Cool (7) Movement Treading (160) Location -9/Storage Parts ------- > --- POWER (1) -------- Reinforced Ion Engine > --- PROPULSION (4) --- Light Treads > --- UTILITY (2) ------ Signal Interpreter > --- WEAPON (2) ------- (None) > --- INVENTORY (5) ---- Improved Ion Engine Peak State ------------ > --- POWER ------------ Ion Engine > --- PROPULSION ------- Aluminum Leg Improved Aluminum Leg Improved Aluminum Leg > --- UTILITY ---------- Signal Interpreter Medium Armor Plating > --- WEAPON ----------- Medium Laser Heavy Particle Cannon > --- INVENTORY -------- Reinforced Ion Engine Improved EM Shotgun Grenade Launcher [Rating: 13] Favorites ----------- Power Ion Engine Engine Ion Engine Propulsion Aluminum Leg Treads Light Treads Leg Aluminum Leg Utility Signal Interpreter Processor Signal Interpreter Protection Medium Armor Plating Weapon Medium Laser Energy Gun Medium Laser Energy Cannon Heavy Particle Cannon Ballistic Gun Light Assault Rifle Launcher Grenade Launcher Build | -11 -10 -9 -9 ------- Run | Yrd Mat Mat Sto Slots Evolved 2 | . . 2 . Power . | . . . . Propulsion 2 | . . 2 . Utility . | . . . . Weapon . | . . . . Parts Attached 22 | 5 4 10 3 Power 4 | 1 1 2 . Engine 4 | 1 1 2 . Core . | . . . . Reactor . | . . . . Propulsion 8 | 2 . 5 1 Treads 1 | . . . 1 Leg 7 | 2 . 5 . Wheel . | . . . . Hover . | . . . . Flight . | . . . . Utility 2 | . 1 1 . Device . | . . . . Storage . | . . . . Processor 1 | . 1 . . Hackware . | . . . . Protection 1 | . . 1 . Artifact . | . . . . Weapon 8 | 2 2 2 2 Energy Gun 4 | 2 . 1 1 Energy Cannon 1 | . . 1 . Ballistic Gun 1 | . . . 1 Ballistic Cannon . | . . . . Launcher 2 | . 2 . . Special Weapon . | . . . . Impact Weapon . | . . . . Slashing Weapon . | . . . . Piercing Weapon . | . . . . Special Melee Weapon . | . . . . Unidentified Prototypes 1 | . . . 1 Parts Lost 11 | . 1 5 5 Power 1 | . . 1 . Propulsion 4 | . . 3 1 Utility 1 | . . 1 . Weapon 5 | . 1 . 4 Highest Loss Streak 4 | . 1 4 2 To Critical Strikes . | . . . . Average Slot Usage (%) 65 | . 71 72 45 Engine 11 | . 14 10 11 Leg 21 | . 28 26 2 Processor 9 | . 5 11 11 Protection 1 | . . 3 . Energy Gun 12 | . 19 10 10 Energy Cannon 6 | . . 9 8 Launcher 1 | . 3 1 . Naked Turns . | . . . . Heaviest Build 20 | 9 10 20 19 Greatest Support 46 | 20 20 46 20 Greatest Overweight (x) 6 | . . 1 6 Average Overweight (x) . | . . . 2 Largest Inventory Capacity 5 | 5 5 5 5 Average Capacity 5 | 5 5 5 5 Most Carried 4 | . 3 4 2 Average Carried 1 | . . 1 1 Final Capacity 5 | 5 5 5 5 Final Carried 3 | . 3 2 1 Class Distribution -------------------- 100% | Mutant Dominant Class ---------------- Mutant | -10/Materials Mutant | -9/Materials Mutant | -9/Storage Resources | -11 -10 -9 -9 ----------- Run | Yrd Mat Mat Sto Matter Collected 496 | 236 9 231 20 Remotely . | . . . . Salvage Created 782 | . 92 504 186 Parts 36 | . 3 23 10 Haulers Intercepted . | . . . . Recyclers Shooed 3 | . . 2 1 Parts Field Recycled . | . . . . Retrieved Matter . | . . . . Parts Self-Destructed . | . . . . Prevented . | . . . . Kills | -11 -10 -9 -9 ------- Run | Yrd Mat Mat Sto Combat Hostiles Destroyed 18 | . 2 11 5 Guns 3 | . . 2 1 Cannons 11 | . . 9 2 AOE 3 | . 1 . 2 Classes Destroyed 5 | . 1 3 1 Operator 1 | . . 1 . Swarmer 2 | . . . 2 Grunt 10 | . 2 7 1 Brawler 1 | . . 1 . Sentry 5 | . . 3 2 Best Kill Streak 2 | . 1 2 2 Combat Bots Only 2 | . 1 2 2 Max Kills in Single Turn 2 | . 1 1 2 Gunslinging . | . . . . Exploded 2 | . 1 . 2 Melee . | . . . . Uniques/NPCs Destroyed . | . . . . Combat | -11 -10 -9 -9 -------- Run | Yrd Mat Mat Sto Hostile Shots Fired 152 | . 10 80 62 Missed 44 | . 1 26 17 Damage Taken 1757 | . 149 1001 607 Core 417 | . 15 243 159 Absorbed by Shields . | . . . . Regen/Repaired (Parts) 39 | . . 39 . Core Remaining (%) 97 | 100 94 . . Volleys Fired 64 | . 10 38 16 Largest 2 | . 2 2 2 Hottest 125 | . 90 125 120 Shots Fired 95 | . 13 65 17 Gun 54 | . 13 33 8 Cannon 41 | . . 32 9 Launcher . | . . . . Special . | . . . . Kinetic 1 | . . . 1 Thermal 84 | . 10 65 9 Explosive . | . . . . Electromagnetic 10 | . 3 . 7 Robot Hit Streak 12 | . 12 8 10 Robot Miss Streak 5 | . 1 5 2 Penetration Max . | . . . . Secondary Targets . | . . . . Shots Hit Robots 60 | . 12 35 13 Core Hits 28 | . 3 18 7 Critical Kills . | . . . . Critical Parts Destroyed . | . . . . Critical Strikes 1 | . 1 . . Burn 1 | . 1 . . Melee Attacks . | . . . . Impact . | . . . . Slashing . | . . . . Piercing . | . . . . Sneak Attacks . | . . . . Combat Hostiles . | . . . . Follow-up Attacks . | . . . . Damage Inflicted 1200 | . 215 656 329 Guns 501 | . 137 252 112 Cannons 550 | . . 400 150 Explosions 145 | . 78 . 67 Melee . | . . . . Ramming 4 | . . 4 . Kinetic . | . . . . Thermal 1058 | . 189 652 217 Explosive . | . . . . Electromagnetic 138 | . 26 . 112 Impact . | . . . . Slashing . | . . . . Piercing . | . . . . Highest Corruption 3 | . 1 1 3 Average Corruption 1 | . 1 1 1 Corruption Purged . | . . . . Corruption Blocked . | . . . . Effects 2 | . . 2 . Matter Fused 1 | . . 1 . Energy Discharges 1 | . . 1 . Overload Shots . | . . . . Overflow Damage 38 | . . . 38 Projectiles 20 | . . . 20 Explosions 18 | . . . 18 Melee . | . . . . Knockbacks . | . . . . Impact . | . . . . Kinetic . | . . . . Secondary . | . . . . Self-Inflicted Damage 32 | . . . 32 Shots 1 | . . . 1 Rammed . | . . . . Targets Rammed 5 | . . 5 . Kicked 5 | . . 5 . Crushed . | . . . . Highest Temperature 857 | . 235 857 251 Average Temperature 209 | . 138 261 77 Received Heat Transfer 666 | . 75 366 225 Effects 18 | . . 18 . Shutdowns 4 | . . 4 . Energy Bleed 2 | . . 2 . Interference 3 | . . 3 . Matter Decay 2 | . . 2 . Short Circuit 2 | . . 2 . Damage (minor) 3 | . . 3 . Damage (core) 2 | . . 2 . Siege Activations . | . . . . Robots Corrupted . | . . . . Combat Hostiles . | . . . . Parts Fried . | . . . . Impact Corruptions . | . . . . Robots Melted 1 | . 1 . . Combat Hostiles 1 | . 1 . . Parts Melted 2 | . 2 . . Heat Transferred 2111 | . 507 1332 272 Parts Sabotaged . | . . . . Parts Stolen . | . . . . Parts Stripped . | . . . . Power Chain Reactions 2 | . 1 . 1 Alert | -11 -10 -9 -9 ------- Run | Yrd Mat Mat Sto Peak Influence 247 | . 60 247 237 Initial 94 | . . 25 94 Average 94 | . 34 124 134 Maximum Alert Level 1 | . . 1 1 Low Security (%) 92 | 100 100 85 95 Level 1 7 | . . 14 5 Level 2 . | . . . . Level 3 . | . . . . Level 4 . | . . . . Level 5 . | . . . . High Security . | . . . . Max Security . | . . . . Squads Dispatched 3 | . . 3 . Investigation . | . . . . Extermination . | . . . . Reinforcement 3 | . . 3 . Assault . | . . . . Garrison . | . . . . Intercept . | . . . . Searches Triggered . | . . . . Construction Impeded . | . . . . Haulers Reinforced . | . . . . Active Scanning Responses . | . . . . Cargo Convoy Interrupts . | . . . . Stealth | -11 -10 -9 -9 --------- Run | Yrd Mat Mat Sto Distress Signals 3 | . 1 2 . Communications Jammed . | . . . . Distress Signals . | . . . . Times Spotted 33 | . 5 18 10 Peak Tracking Total 5 | . 3 5 5 Tactical Retreats 2 | . . 2 . Traps | -11 -10 -9 -9 ------- Run | Yrd Mat Mat Sto Traps Triggered 2 | . 1 1 . Indirectly . | . . . . Trap Hack Attempts . | . . . . Triggered . | . . . . Disarmed . | . . . . Reprogrammed . | . . . . Reused . | . . . . Traps Extracted . | . . . . Installed . | . . . . Triggered . | . . . . Machines | -11 -10 -9 -9 ---------- Run | Yrd Mat Mat Sto Machines Disabled 4 | . 1 2 1 Max in Single Turn 1 | . 1 1 1 Machines Repaired . | . . . . Machines Dismantled . | . . . . Machines Sabotaged . | . . . . Overloaded Fab Kills . | . . . . Hacking | -11 -10 -9 -9 --------- Run | Yrd Mat Mat Sto Machines Accessed 4 | . 2 2 . Terminals 3 | . 2 1 . Fabricators . | . . . . Repair Stations 1 | . . 1 . Recycling Units . | . . . . Scanalyzers . | . . . . Garrison Access . | . . . . Total Hacks 12 | . 2 10 . Successful 8 | . 1 7 . Failed 4 | . 1 3 . Catastrophic . | . . . . Database Lockouts . | . . . . Manual . | . . . . Terminals 9 | . 2 7 . Fabricators . | . . . . Repair Stations 3 | . . 3 . Recycling Units . | . . . . Scanalyzers . | . . . . Garrison Access . | . . . . Terminal Hacks 6 | . 1 5 . Record 2 | . . 2 . Prototype ID Bank 1 | . . 1 . Dispatch Records 1 | . . 1 . Reinforcement Status 1 | . . 1 . Zone Layout 1 | . 1 . . Fabricator Hacks . | . . . . Repair Station Hacks 2 | . . 2 . Scan Component 1 | . . 1 . Repair 1 | . . 1 . Recycling Unit Hacks . | . . . . Scanalyzer . | . . . . Garrison Access Hacks . | . . . . Unauthorized Hacks . | . . . . Terminals . | . . . . Fabricators . | . . . . Repair Stations . | . . . . Recycling Units . | . . . . Scanalyzers . | . . . . Garrison Access . | . . . . Data Cores Recovered . | . . . . Used . | . . . . Hacking Detections 1 | . . 1 . Full Trace Events . | . . . . Feedback Events . | . . . . Feedback Blocked . | . . . . Robot Schematics Acquired . | . . . . Robots Built . | . . . . Authchips . | . . . . Time . | . . . . Total Robot Build Rating . | . . . . Part Schematics Acquired . | . . . . Parts Built . | . . . . Authchips . | . . . . Time . | . . . . Total Part Build Rating . | . . . . Parts Repaired 1 | . . 1 . Time 26 | . . 26 . Parts Recycled . | . . . . Recycled Matter . | . . . . Retrieved Matter . | . . . . Retrieved Components . | . . . . Parts Scanalyzed . | . . . . Part Schematics Acquired . | . . . . Parts Damaged . | . . . . Bothacking | -11 -10 -9 -9 ------------ Run | Yrd Mat Mat Sto Used RIF Installer . | . . . . Robots Hacked . | . . . . Non-combat . | . . . . Combat . | . . . . Robot Hacks Applied . | . . . . Relay Couplers Released . | . . . . Fabnet Peak Effective % . | . . . . Robots Rewired . | . . . . Allies Hacked . | . . . . Hacks Repelled . | . . . . Allies | -11 -10 -9 -9 -------- Run | Yrd Mat Mat Sto Total Allies . | . . . . Largest Group . | . . . . Highest-Rated Group . | . . . . Highest-Rated Ally . | . . . . Total Orders . | . . . . Ally Attacks . | . . . . Total Damage . | . . . . Kills . | . . . . Allies Corrupted . | . . . . Allies Melted . | . . . . Intel | -11 -10 -9 -9 ------- Run | Yrd Mat Mat Sto Robot Analysis Total . | . . . . Derelict Logs Recovered . | . . . . Drone Launches . | . . . . Drone Recoveries . | . . . . Exploration | -11 -10 -9 -9 ------------- Run | Yrd Mat Mat Sto Turns Passed 1357 | 140 294 623 300 Spaces Moved 906 | 195 219 377 115 Core 183 | 144 . . 39 Treads 33 | . . . 33 Legs 690 | 51 219 377 43 Wheels . | . . . . Hover . | . . . . Flight . | . . . . Fastest Speed 50 | 50 120 120 160 Average Speed 127 | 68 120 130 229 Slowest Speed 350 | 120 120 190 350 Overloaded Moves . | . . . . Propulsion Burnouts . | . . . . Robots Hopped . | . . . . Cave-ins Triggered 1 | . . . 1 Exploration Rate (%) 23 | 4 34 28 28 Regions Visited 3 Branch Regions 1 Pre-discovered Areas . | . . . . Known Exits Taken 2 | . 1 1 . Unknown Exits Taken 1 | 1 . . . Scrap Searched . | . . . . Spaces Dug . | . . . . Terrain Destroyed 16 | . . 14 2 Melee . | . . . . Projectile 15 | . . 14 1 AOE 1 | . . . 1 Terrain Rammed . | . . . . Walls Destroyed . | . . . . Machines Disabled . | . . . . Actions | -11 -10 -9 -9 --------- Run | Yrd Mat Mat Sto Total 1009 | 199 237 439 134 Wait . | . . . . Move 903 | 194 218 376 115 Hop . | . . . . Pick Up 6 | . 3 3 . Fast Attach 13 | 5 2 4 2 Attach 8 | . 2 5 1 Detach 6 | . 2 4 . Swap 1 | . . 1 . Drop 3 | . . 3 . Fire 64 | . 10 38 16 Melee . | . . . . Ram . | . . . . Kick 5 | . . 5 . Crush . | . . . . Escape Stasis . | . . . . Rewire . | . . . . Trap . | . . . . Miscellaneous . | . . . . Route ------- -11/Scrapyard -10/Materials -9/Materials -9/Storage History --------- Turn | Location | Event 8 | -11/Scrapyard | Discovered new exit (range 15) 141 | -11/Scrapyard | Entered Materials 313 | -10/Materials | Build established: Mutant 411 | -10/Materials | Discovered new exit (range 10) 421 | -10/Materials | Identified exit to Materials 435 | -10/Materials | Entered another Materials area 435 | -9/Materials | Evolved 2 slots: Propulsion x2 487 | -9/Materials | Repaired Aluminum Leg? 903 | -9/Materials | Core integrity fell below 50% 940 | -9/Materials | Lost 4 parts (1p2n1u) 1002 | -9/Materials | Discovered new exit (range 16) 1054 | -9/Materials | Identified exit to Storage 1058 | -9/Materials | Entered Storage 1274 | -9/Storage | Core integrity fell below 20% 1351 | -9/Storage | Crushed by falling debris 1358 | -9/Storage | Destroyed by G-34 Mercenary with Small Laser Last Messages --------------- Chain reaction triggered in Lgt. Ion Engine. S-10 Pest destroyed. Imp. EM Shotgun destroyed. Destroyed Imp. EM Shotgun. S-10 Pest destroyed. K-01 Serf collects debris. R-06 Scavenger collects Flight Unit. Acquired Lgt. Assault Rifle. K-01 Serf collects debris. The unstable cave ceiling collapses. Crushed by falling debris. [Achievement: Unlikely Earthworm] Lgt. Assault Rifle destroyed. System corrupted by crushing effect (+2). U-05 Engineer lays Concrete. R-06 Scavenger collects Lgt. Assault Rifle. U-05 Engineer lays Concrete. K-01 Serf collects debris. U-05 Engineer lays Concrete. K-01 Serf collects debris. Map ----- +----------------------------------------------------+ | ?????????????????????????????????????????????????? | | ?????????????????????????????????????????????????? | | ?????????????????????????????????????????????????? | | ?????????????????????????????????????????????????? | | ?????????????????????????????????????????????????? | | ?????????????????????????????????????????????????? | | ?????????????????????????????????????????????????? | | ?????????????????????????????????????????????????? | | ?????????????????????????????????????????????????? | | ?????????????????????????????????????????????????? | | ?????????????????????????????????????????????????? | | ?????????????????????????????????????????????????? | | ?????????????????????????????????????????????????? | | ???????????????????????#+####????????????????????? | | ???????????????????????# # ????????????????????? | | ???????????????????????#a# "????????????????????? | | ???????????????????????# # "????????????????????? | | ???????????????????????# ? "??????????#####?????? | | ???????????????????????# ? ??????????#"""###???? | | ???????????????????????#u##+############"Y # ###?? | | ?????????????????????### + % #??? | | ?????????????????????#"" Y # #??? | | ?????????????????????#"T r # % #??? | | ?????????????????????#"" + #??? | | ???????????????????????# u ####### !! #??? | | ???????????????????????# @ k g#?????# !! #??? | | ???????????????????????# u % ##????# !! #??? | | ???????????????????????# s# ###### #??? | | ??????????????????# # T + #??? | | ??????????????????# u # ##########+####??? | | ??????????????????# #####??????# #???? | | ??????????????????# #??????????# #???? | | ??????????????????# a g #??????????# #???? | | ????????????????? " a####??????????# #???? | | ???????????????? #a ??????????????# #???? | | ??????????????? ?# ??????????????## % ##???? | | ??????????????? ??# ???????????????# #????? | | ??????????????????# ???????????????# #????? | | ?????????????????? ???????????????# #????? | | ??????????????????? ???????????????# +????? | | ??????????????????????? ?????????####??# #????? | | ??????????????????????????????????#"""??# #????? | | ??????????????????????????????#####"T"### #????? | | ??????????????????????????????#^ ]| # #????? | | ??????????????????????????????+ """ ]| # ###### | | ??????????????????????????????# """ | # | | ??????????????????????????????# """ ! + | | ??????????????????????????????# # | | ??????????????????????????????# ##+##+#### | | ??????????????????????????????# "T" ## | +----------------------------------------------------+ Best States ------------- Heat Dissipation 28 Energy Generation 12 Energy Capacity 265 Matter Stores 300 Matter Capacity 300 Sight Range 16 Terrain Scan Density 10 Armor Coverage 225 Evasion (%) 55 Recoil Reduction 1 Item Schematics ----------------- None Robot Schematics ------------------ None Fabricated ------------ Nothing Alien Tech Used ----------------- None Achievements -------------- Unlikely Earthworm Challenges ------------ None Game ------ Seed DeliveryChromaticArray Manual? 0 Play Time 00:50:23 Cumulative 3.7 hours Start 2024.07.31 @ 16:41:45 End 2024.07.31 @ 18:03:05 Sessions 1 Manual Loads 0 Difficulty Rogue Special Mode None Game No. 8 Rogue 8 Adventurer 0 Explorer 0 Win Type - Total 0 Types 0/0/0/0/0/0/0/0/0 Lore% 6 Gallery% 8 Achievement% 7 Wizard Run 0 Options --------- Layout 1 ASCII 0 Keyboard 1 Movement Vi Keybinds 0 Fullscreen 1 Font 28/SmallcapsGlow Map View 50x43 Zoom Use 0% Tactical HUD 0 Map Filters NONE Filters NONE Steam 0 RUN: a648f691-e23f-4dda-adda-ae34e9bdc310